bitfinex/quotes_BTCUSD_20251214
["timestamp","ask_amount","ask_price","bid_price","bid_amount"]
[1765713075148,0.00038569,89243.0,89206.0,0.2907]
[1765713075351,0.00038569,89243.0,89207.0,0.01836]
[1765713075688,0.00038569,89243.0,89213.0,0.2907]
[1765713075901,0.00038569,89243.0,89216.0,1.0]
[1765713076108,0.00038569,89243.0,89219.0,0.2907]
[1765713076316,0.00038569,89243.0,89223.0,0.2907]
[1765713076516,0.00038569,89243.0,89224.0,0.7063]
[1765713076755,0.00038569,89243.0,89224.0,0.1554]
[1765713076968,0.00038569,89243.0,89223.0,0.2907]
[1765713076969,0.05040408,89243.0,89223.0,0.2907]
[1765713077200,0.05040408,89243.0,89225.0,0.01836]
[1765713078460,0.14936748,89243.0,89204.0,0.09943633]
[1765713078630,0.14936748,89243.0,89205.0,0.01836]
[1765713078838,0.14936748,89243.0,89207.0,0.2907]
[1765713079632,0.05001839,89241.0,89207.0,0.2907]
[1765713079834,0.06168464,89241.0,89197.0,0.2907]
[1765713080032,0.05001839,89242.0,89208.0,0.01836]
[1765713080210,0.02596274,89241.0,89208.0,0.01836]
[1765713080604,0.05001839,89238.0,89203.0,0.01836]
[1765713081015,0.2907,89239.0,89203.0,0.01836]
[1765713081016,0.05001839,89236.0,89203.0,0.01836]
[1765713081442,0.05001839,89234.0,89203.0,0.01836]
[1765713081802,0.05001839,89232.0,89203.0,0.01836]
[1765713082294,0.05001839,89230.0,89203.0,0.01836]
[1765713084656,0.02801779,89229.0,89203.0,0.01836]
[1765713085722,0.05001839,89227.0,89203.0,0.01836]
[1765713085925,0.07803681,89227.0,89203.0,0.01836]
[1765713086121,0.14680681,89227.0,89203.0,0.01836]
[1765713086989,0.07803681,89227.0,89203.0,0.01836]
[1765713087809,0.06877,89226.0,89179.0,0.2907]
[1765713088056,0.07803744,89225.0,89183.0,0.2907]
[1765713088253,0.07803744,89225.0,89185.0,0.2907]
[1765713088519,0.07803744,89225.0,89189.0,0.2907]
[1765713089781,0.07803744,89225.0,89183.0,1.0]
[1765713089981,0.07803744,89225.0,89186.0,0.2907]
[1765713090221,0.06877,89247.0,89190.0,0.2907]
[1765713090426,0.02801497,89238.0,89192.0,0.2907]
[1765713090639,0.00024677,89242.0,89196.0,0.2907]
[1765713090828,0.00024677,89242.0,89200.0,0.2907]
[1765713090829,0.02801402,89241.0,89200.0,0.2907]
[1765713091039,0.02801402,89241.0,89203.0,0.2907]
[1765713091275,0.00024677,89242.0,89207.0,0.2907]
[1765713091486,0.00024677,89242.0,89211.0,0.2907]
[1765713091692,0.00024677,89242.0,89213.0,0.2907]
[1765713091931,0.00024677,89242.0,89217.0,0.2907]
[1765713092361,0.00024677,89242.0,89223.0,0.2907]
[1765713092516,0.00024677,89242.0,89225.0,0.2907]
[1765713092712,0.00024677,89242.0,89227.0,0.2907]
[1765713093666,0.00024677,89242.0,89224.0,0.01832]
[1765713094045,2.46e-06,89243.0,89226.0,0.2907]
[1765713094247,2.46e-06,89243.0,89228.0,0.2907]
[1765713094509,2.46e-06,89243.0,89227.0,0.2907]
[1765713095510,2.46e-06,89243.0,89224.0,0.10206694]
[1765713095511,2.46e-06,89243.0,89231.0,0.2907]
[1765713095704,2.46e-06,89243.0,89233.0,0.2907]
[1765713096741,2.46e-06,89243.0,89227.0,0.2907]
[1765713097114,2.46e-06,89243.0,89231.0,0.2907]
[1765713097309,2.46e-06,89243.0,89233.0,0.2907]
[1765713098339,0.00161533,89243.0,89234.0,0.01832]
[1765713099569,0.11878839,89242.0,89226.0,0.09943633]
[1765713099788,0.11878839,89242.0,89211.0,0.09943633]
[1765713099789,0.05001839,89240.0,89211.0,0.09943633]
[1765713099979,0.05001839,89238.0,89212.0,0.01832]
[1765713100218,0.05001839,89236.0,89212.0,0.01832]
[1765713100416,0.05001839,89234.0,89212.0,0.01832]
[1765713100615,0.05001839,89232.0,89212.0,0.01832]
[1765713101092,0.00161533,89243.0,89212.0,0.01832]
[1765713101093,0.05001839,89240.0,89212.0,0.01832]
[1765713101273,0.05001839,89238.0,89212.0,0.01832]
[1765713101416,0.05001839,89236.0,89212.0,0.01832]
[1765713101625,0.05001839,89234.0,89212.0,0.01832]
[1765713102029,0.05001839,89242.0,89212.0,0.01832]
[1765713102270,0.02962873,89243.0,89212.0,0.01832]
[1765713102271,0.05001839,89240.0,89212.0,0.01832]
[1765713102498,0.05001839,89238.0,89212.0,0.01832]
[1765713102630,0.05001839,89236.0,89212.0,0.01832]
[1765713103035,0.05001839,89242.0,89212.0,0.01832]
[1765713103257,0.05001839,89240.0,89212.0,0.01832]
[1765713103469,0.05001839,89238.0,89212.0,0.01832]
[1765713103681,0.05001839,89236.0,89212.0,0.01832]
[1765713104784,0.05001839,89242.0,89212.0,0.01832]
[1765713104981,0.05001839,89240.0,89212.0,0.01832]
[1765713105167,0.05001839,89238.0,89212.0,0.01832]
[1765713105367,0.05001839,89236.0,89212.0,0.01832]
[1765713105563,0.05001839,89242.0,89212.0,0.01832]
[1765713105790,0.05001839,89240.0,89212.0,0.01832]
[1765713105989,0.05001839,89238.0,89206.0,0.09943633]
[1765713106193,0.05001839,89238.0,89213.0,0.01832]
[1765713106960,0.05001839,89236.0,89213.0,0.01832]
[1765713107197,0.05001839,89236.0,89214.0,0.01832]
[1765713108303,0.02371762,89236.0,89214.0,0.01832]
[1765713108942,0.05001839,89234.0,89214.0,0.01832]
[1765713109346,0.07803461,89234.0,89215.0,0.01832]
[1765713109702,0.07803461,89234.0,89205.0,0.09943633]
[1765713109917,0.07803461,89234.0,89196.0,0.08402559]
[1765713109918,0.05001839,89232.0,89207.0,0.2907]
[1765713110142,0.05001839,89232.0,89203.0,0.09943633]
[1765713110348,0.05001839,89230.0,89203.0,0.01832]
[1765713110775,0.05001839,89228.0,89203.0,0.01832]
[1765713111419,0.05001839,89234.0,89203.0,0.01832]
[1765713111618,0.06877,89228.0,89203.0,0.01832]
[1765713111853,0.09678811,89228.0,89203.0,0.01832]
[1765713112262,0.02801811,89228.0,89203.0,0.01832]
[1765713112482,0.0780365,89228.0,89203.0,0.01832]
[1765713112898,0.1468065,89228.0,89203.0,0.01832]
[1765713113345,0.05001839,89226.0,89203.0,0.01832]
[1765713113551,0.02801905,89225.0,89191.0,0.09943633]
[1765713113768,0.02801905,89225.0,89192.0,0.01832]
[1765713113769,0.05001839,89224.0,89192.0,0.01832]
[1765713113984,0.05001839,89222.0,89192.0,0.01832]
[1765713114394,0.05001839,89220.0,89192.0,0.01832]
[1765713114800,0.09679093,89219.0,89192.0,0.01832]
[1765713115208,0.05001839,89217.0,89192.0,0.01832]
[1765713115613,0.05001839,89215.0,89192.0,0.01832]
[1765713116875,0.05001839,89215.0,89192.0,0.01870323]
[1765713117455,0.05001839,89213.0,89192.0,0.01870323]
[1765713117658,0.05001839,89211.0,89192.0,0.00038323]
[1765713117862,0.11206554,89212.0,89192.0,0.00038323]
[1765713117863,0.08654839,89193.0,89192.0,0.00038323]
[1765713118792,0.20454839,89193.0,89192.0,0.00038323]
[1765713119177,0.20616126,89193.0,89192.0,0.00038323]
[1765713119402,0.20584226,89193.0,89192.0,0.00038323]
[1765713123237,0.00161287,89193.0,89192.0,0.00038323]
[1765713123665,0.02802533,89205.0,89192.0,0.00038323]
[1765713123841,0.03753,89250.0,89192.0,0.00038323]
[1765713123842,0.02802282,89213.0,89192.0,0.00038323]
[1765713124037,0.05001839,89212.0,89192.0,0.00038323]
[1765713124186,0.02802345,89211.0,89192.0,0.00038323]
[1765713124386,0.02802125,89218.0,89192.0,0.00038323]
[1765713125287,0.02932659,89270.0,89192.0,0.00038323]
[1765713125288,0.10753,89238.0,89192.0,0.00038323]
[1765713125490,0.02801528,89237.0,89196.0,0.2907]
[1765713125667,0.02801528,89237.0,89198.0,0.2907]
[1765713125807,0.02801528,89237.0,89202.0,0.2907]
[1765713126011,0.02801528,89237.0,89192.0,0.00038323]
[1765713126012,0.02801528,89237.0,89203.0,0.01832]
[1765713126517,0.0280134,89243.0,89203.0,0.01832]
[1765713127135,0.02962627,89243.0,89203.0,0.01832]
[1765713127719,0.02962627,89243.0,89206.0,0.2907]
[1765713127917,0.05001839,89242.0,89207.0,0.01832]
[1765713128275,0.05001839,89240.0,89207.0,0.01832]
[1765713128475,0.05001839,89238.0,89207.0,0.01832]
[1765713128676,0.05001839,89236.0,89207.0,0.01832]
[1765713128856,0.05163126,89236.0,89207.0,0.01832]
[1765713129077,0.05163126,89236.0,89209.0,0.2907]
[1765713129231,0.05163126,89236.0,89211.0,0.2907]
[1765713130234,0.05163126,89236.0,89208.0,1.0]
[1765713130675,0.02263124,89235.0,89207.0,0.01832]
[1765713130846,0.02263124,89235.0,89200.0,0.09943633]
[1765713131200,0.02263124,89235.0,89204.0,0.2907]
[1765713131487,0.05163126,89236.0,89206.0,0.2907]
[1765713132640,0.05163126,89236.0,89207.0,0.2907]
[1765713132851,0.05163126,89236.0,89208.0,1.0]
[1765713133053,0.00161287,89236.0,89208.0,1.0]
[1765713133253,0.03653,89235.0,89207.0,0.2907]
[1765713133621,0.02801622,89234.0,89207.0,0.2907]
[1765713134285,0.02801622,89234.0,89205.0,0.01828]
[1765713134479,0.00161287,89236.0,89205.0,0.01828]
[1765713135200,0.03653,89235.0,89205.0,0.01828]
[1765713135399,0.07803461,89234.0,89205.0,0.01828]
[1765713136426,0.07803461,89234.0,89206.0,0.01828]
[1765713137326,0.05001839,89232.0,89206.0,0.01828]
[1765713137541,0.05001839,89230.0,89204.0,0.01828]
[1765713137742,0.09901779,89229.0,89204.0,0.01828]
[1765713137932,0.05001839,89227.0,89204.0,0.01828]
[1765713138135,0.00161287,89236.0,89204.0,0.01828]
[1765713138136,0.02801622,89234.0,89206.0,0.2907]
[1765713138330,0.05001839,89235.0,89206.0,0.2907]
[1765713138555,0.0780343,89235.0,89206.0,0.2907]
[1765713138779,0.05001839,89233.0,89206.0,0.2907]
[1765713139018,0.05001839,89231.0,89206.0,0.30898]
[1765713139166,0.05001839,89229.0,89206.0,0.30898]
[1765713139377,0.05001839,89227.0,89206.0,0.30898]
[1765713139541,0.05001839,89225.0,89206.0,0.01828]
[1765713139736,0.05001839,89223.0,89206.0,0.01828]
[1765713139979,0.071,89230.0,89206.0,0.01828]
[1765713139980,0.05001839,89221.0,89206.0,0.01828]
[1765713140570,0.05001839,89227.0,89206.0,0.01828]
[1765713140774,0.05001839,89233.0,89206.0,0.01828]
[1765713140944,0.05001839,89231.0,89206.0,0.01828]
[1765713141145,0.05001839,89229.0,89206.0,0.01828]
[1765713141583,0.0280134,89243.0,89207.0,1.0]
[1765713141788,0.0280134,89243.0,89210.0,0.2907]
[1765713141990,0.0280134,89243.0,89208.0,0.2907]
[1765713142194,0.0280134,89243.0,89210.0,0.2907]
[1765713142839,0.03653,89249.0,89210.0,0.2907]
[1765713143038,0.02801183,89248.0,89210.0,0.2907]
[1765713143416,0.02801183,89248.0,89208.0,0.2907]
[1765713143618,0.02801183,89248.0,89210.0,0.2907]
[1765713143619,0.00441287,89236.0,89210.0,0.2907]
[1765713144611,0.00441287,89236.0,89208.0,0.2907]
[1765713144812,0.00441287,89236.0,89210.0,0.2907]
[1765713145275,0.00441287,89236.0,89211.0,0.01828]
[1765713145875,0.00441287,89236.0,89212.0,0.01828]
[1765713147385,0.00711287,89236.0,89212.0,0.01828]
[1765713150293,0.05001839,89249.0,89216.0,0.2907]
[1765713150473,0.05001839,89249.0,89218.0,0.2907]
[1765713150683,0.05001839,89249.0,89222.0,0.2907]
[1765713150885,0.2442,89270.0,89224.0,0.2907]
[1765713150886,0.02800681,89264.0,89224.0,0.2907]
[1765713151090,0.02800681,89264.0,89228.0,0.2907]
[1765713151293,0.02800681,89264.0,89228.0,0.29231287]
[1765713151494,0.00666,89236.0,89228.0,0.29231287]
[1765713151910,0.00666,89236.0,89228.0,0.2926961]
[1765713152288,0.00666,89236.0,89228.0,0.0019961]
[1765713152853,0.02800681,89264.0,89235.0,0.00161287]
[1765713153068,0.02800712,89263.0,89235.0,0.00161287]
[1765713153251,0.02800712,89263.0,89236.0,0.01828]
[1765713153552,0.02800712,89263.0,89237.0,1.0]
[1765713153708,0.0004,89300.0,89238.0,0.09943633]
[1765713153709,0.02800241,89278.0,89238.0,0.09943633]
[1765713153915,0.02800241,89278.0,89240.0,0.09943633]
[1765713154116,0.01927162,89278.0,89243.0,0.09943633]
[1765713154338,0.05001839,89287.0,89247.0,0.2907]
[1765713154514,0.05001839,89285.0,89248.0,1.01828]
[1765713154718,0.02081512,89284.0,89250.0,0.2907]
[1765713154923,0.05001839,89283.0,89250.0,0.29231287]
[1765713155118,0.05001839,89281.0,89250.0,0.29231287]
[1765713155320,0.02839928,89288.0,89250.0,0.29231287]
[1765713155639,0.02839928,89288.0,89250.0,0.00161287]
[1765713155806,0.02839928,89288.0,89254.0,0.2907]
[1765713156006,0.05001839,89287.0,89256.0,0.2907]
[1765713156209,0.02799991,89286.0,89257.0,1.0]
[1765713156409,0.0004,89288.0,89257.0,0.00161287]
[1765713156942,0.0004,89288.0,89259.0,0.2907]
[1765713157143,0.0004,89288.0,89260.0,0.01824]
[1765713157346,0.0004,89288.0,89260.0,0.01985287]
[1765713158350,0.0004,89288.0,89262.0,0.2907]
[1765713158554,0.0004,89288.0,89262.0,0.29231287]
[1765713158932,0.0004,89288.0,89262.0,0.00161287]
[1765713160870,0.0004,89288.0,89263.0,0.01824]
[1765713161073,0.0004,89288.0,89263.0,0.01985287]
[1765713161274,0.00066784,89264.0,89263.0,0.00161287]
[1765713161479,0.00066784,89264.0,89263.0,0.01985287]
[1765713161837,0.05041839,89288.0,89263.0,0.00161287]
[1765713162057,0.07841767,89288.0,89263.0,0.01985287]
[1765713162258,0.05001839,89286.0,89263.0,0.01985287]
[1765713162462,0.0004,89288.0,89263.0,0.01985287]
[1765713162463,0.05001839,89284.0,89263.0,0.01985287]
[1765713162662,0.05001839,89282.0,89244.0,0.645]
[1765713162865,0.05001839,89280.0,89245.0,0.01824]
[1765713163069,0.0004,89288.0,89249.0,0.2907]
[1765713163368,0.0004,89288.0,89255.0,0.2907]
[1765713163574,0.0004,89288.0,89256.0,0.1853]
[1765713163774,0.06948,89287.0,89257.0,0.01824]
[1765713164021,0.02799991,89286.0,89257.0,0.01824]
[1765713164212,0.05001839,89285.0,89258.0,0.01824]
[1765713164420,0.05001839,89283.0,89258.0,0.01824]
[1765713164596,0.02800116,89282.0,89258.0,0.01824]
[1765713164918,0.02800116,89282.0,89258.0,0.01985287]
[1765713166565,0.05001839,89281.0,89258.0,0.01985287]
[1765713166771,0.02800179,89280.0,89258.0,0.01985287]
[1765713166987,0.05001839,89286.0,89258.0,0.01985287]
[1765713167217,0.05001839,89284.0,89259.0,0.01824]
[1765713167421,0.05001839,89282.0,89258.0,0.00161287]
[1765713167622,0.05001839,89280.0,89260.0,0.01824]
[1765713167831,0.05001839,89278.0,89260.0,0.01824]
[1765713168039,0.02799959,89287.0,89260.0,0.01985287]
[1765713168245,0.05001839,89286.0,89260.0,0.01985287]
[1765713168441,0.0002428,89272.0,89260.0,0.01985287]
[1765713170206,0.0002428,89272.0,89261.0,0.01824]
[1765713170824,0.0002428,89272.0,89261.0,0.01985287]
[1765713171171,2.8e-06,89272.0,89261.0,0.01985287]
[1765713173708,2.8e-06,89272.0,89263.0,0.2907]
[1765713173943,2.8e-06,89272.0,89263.0,0.29231287]
[1765713174322,2.8e-06,89272.0,89264.0,0.01824]
[1765713174758,2.8e-06,89272.0,89264.0,0.00161287]
[1765713174944,2.8e-06,89272.0,89265.0,0.01824]
[1765713175187,2.8e-06,89272.0,89265.0,0.00161287]
[1765713175396,2.8e-06,89272.0,89266.0,0.01824]
[1765713175536,2.8e-06,89272.0,89266.0,0.01985287]
[1765713176754,2.8e-06,89272.0,89267.0,0.01824]
[1765713177947,2.8e-06,89272.0,89267.0,0.01985287]
[1765713178566,2.8e-06,89272.0,89271.0,0.00161287]
[1765713179787,2.8e-06,89272.0,89271.0,1.29231287]
[1765713180453,2.8e-06,89288.0,89272.0,1.2907]
[1765713180661,0.0004,89300.0,89287.0,0.00161287]
[1765713180883,0.0004,89300.0,89288.0,0.0182]
[1765713181089,0.0004,89300.0,89288.0,0.01981287]
[1765713181926,9e-05,89318.0,89299.0,0.00161287]
[1765713182160,0.00020569,89318.0,89303.0,0.2907]
[1765713182371,0.00020569,89318.0,89304.0,0.0182]
[1765713182580,0.00020569,89318.0,89304.0,0.01981287]
[1765713184645,0.00020569,89318.0,89304.0,0.00161287]
[1765713184865,0.00020569,89318.0,89305.0,0.0182]
[1765713186344,0.00020569,89318.0,89305.0,0.01981287]
[1765713186586,0.00103146,89306.0,89305.0,0.01981287]
[1765713187582,0.00770638,89318.0,89305.0,0.01981287]
[1765713187583,0.00770638,89318.0,89307.0,1.0]
[1765713187781,0.00770638,89318.0,89309.0,0.2907]
[1765713187987,0.00770638,89318.0,89309.0,0.29231287]
[1765713188195,0.0004,89321.0,89309.0,0.29231287]
[1765713188402,0.0004,89330.0,89309.0,0.29242856]
[1765713188833,0.0004,89330.0,89326.0,0.00161287]
[1765713189078,0.0004,89330.0,89311.0,0.2907]
[1765713189079,0.0004,89333.0,89329.0,0.00161287]
[1765713189266,0.0004,89347.0,89332.0,0.00161287]
[1765713189466,0.0279739,89369.0,89346.0,0.00161287]
[1765713189672,0.0279739,89369.0,89347.0,0.0182]
[1765713189879,0.0279739,89369.0,89346.0,0.00161287]
[1765713190083,0.05001839,89361.0,89347.0,0.0182]
[1765713190291,0.0279739,89369.0,89347.0,0.0182]
[1765713190498,0.0279739,89369.0,89347.0,0.01981287]
[1765713190715,0.00078579,89358.0,89347.0,0.01981287]
[1765713190934,0.00078579,89358.0,89348.0,0.0182]
[1765713191349,0.00078579,89358.0,89348.0,0.01981287]
[1765713192403,0.00078579,89358.0,89348.0,0.00161287]
[1765713192615,0.00078579,89358.0,89349.0,0.0182]
[1765713193254,0.00078579,89358.0,89348.0,0.00161287]
[1765713193391,0.00078579,89358.0,89350.0,0.0182]
[1765713193606,0.00130361,89349.0,89348.0,0.01981287]
[1765713193831,0.05001839,89348.0,89291.0,0.13913774]
[1765713194069,0.05001839,89346.0,89310.0,0.00161287]
[1765713194325,0.00024263,89314.0,89310.0,0.00161287]
[1765713194800,0.00024263,89314.0,89311.0,0.0182]
[1765713195218,0.00024263,89314.0,89310.0,0.00161287]
[1765713195472,0.00024263,89314.0,89312.0,0.0182]
[1765713195694,0.00024263,89314.0,89292.0,0.2907]
[1765713195695,0.00024263,89314.0,89292.0,0.678]
[1765713195942,0.00024263,89314.0,89294.0,1.0]
[1765713196181,0.00024263,89314.0,89294.0,1.00161287]
[1765713196406,0.00024263,89314.0,89294.0,0.00161287]
[1765713196615,0.00024263,89314.0,89295.0,0.0182]
[1765713196824,0.00024263,89314.0,89295.0,0.01981287]
[1765713198659,0.00024263,89314.0,89297.0,0.2907]
[1765713198960,0.00024263,89314.0,89297.0,0.29231287]
[1765713199183,0.00024263,89314.0,89300.0,0.2907]
[1765713199385,0.05001839,89297.0,89292.0,0.00011569]
[1765713199585,0.0815,89293.0,89292.0,0.00011569]
[1765713199803,0.13151839,89293.0,89292.0,0.00011569]
[1765713199962,0.20548839,89293.0,89292.0,0.00011569]
[1765713201866,0.11206554,89311.0,89292.0,0.00011569]
[1765713201867,0.07397,89304.0,89292.0,0.00011569]
[1765713202257,0.07397,89326.0,89292.0,0.00172856]
[1765713202464,0.02798831,89323.0,89292.0,0.00172856]
[1765713202982,0.05001839,89322.0,89292.0,0.00172856]
[1765713203138,0.02798893,89321.0,89292.0,0.00172856]
[1765713203339,0.01532437,89323.0,89292.0,0.00172856]
[1765713203549,0.06897,89313.0,89292.0,0.00011569]
[1765713203730,0.05001839,89312.0,89292.0,0.00011569]
[1765713204136,0.05001839,89322.0,89292.0,0.00011569]
[1765713204361,0.11206554,89325.0,89292.0,0.00011569]
[1765713204362,0.13151839,89293.0,89292.0,0.00011569]
[1765713205254,0.05001839,89293.0,89292.0,0.00011569]
[1765713206278,0.09978839,89293.0,89292.0,0.00011569]
[1765713206667,0.05001839,89293.0,89292.0,0.00011569]
[1765713207883,0.09978839,89293.0,89292.0,0.00011569]
[1765713208101,0.17286839,89293.0,89292.0,0.00011569]
[1765713209296,0.2008661,89293.0,89292.0,0.00011569]
[1765713210895,0.1277861,89293.0,89292.0,0.00011569]
[1765713211497,0.1996061,89293.0,89292.0,0.00011569]
[1765713211720,0.1277861,89293.0,89292.0,0.00011569]
[1765713211924,0.1996061,89293.0,89292.0,0.00011569]
[1765713212166,0.1277861,89293.0,89292.0,0.00011569]
[1765713212760,0.0780161,89293.0,89292.0,0.00011569]
[1765713212953,0.1279561,89293.0,89292.0,0.00011569]
[1765713213538,0.1997761,89293.0,89292.0,0.00011569]
[1765713216554,0.1461161,89293.0,89292.0,0.00011569]
[1765713216801,0.2179361,89293.0,89292.0,0.00011569]
[1765713217176,0.0780161,89293.0,89292.0,0.00011569]
[1765713217316,0.07182,89309.0,89292.0,0.00450569]
[1765713217526,0.04615301,89308.0,89292.0,0.00450569]
[1765713217966,0.05001839,89307.0,89292.0,0.00450569]
[1765713218188,0.02799363,89306.0,89292.0,0.00450569]
[1765713219057,0.07801234,89305.0,89292.0,0.00450569]
[1765713221030,0.05001839,89303.0,89292.0,0.00011569]
[1765713221247,0.05001839,89301.0,89292.0,0.00011569]
[1765713221445,0.05001839,89299.0,89292.0,0.00011569]
[1765713221748,0.05001839,89297.0,89292.0,0.00011569]
[1765713221935,0.02799677,89296.0,89292.0,0.00011569]
[1765713222719,0.05001839,89303.0,89292.0,0.00011569]
[1765713222947,0.05001839,89301.0,89292.0,0.00011569]
[1765713223146,0.05001839,89299.0,89292.0,0.00011569]
[1765713223293,0.05001839,89297.0,89292.0,0.00011569]
[1765713223898,0.05001839,89304.0,89292.0,0.00011569]
[1765713224126,0.05001839,89302.0,89292.0,0.00011569]
[1765713224380,0.05001839,89300.0,89292.0,0.00011569]
[1765713224532,0.05001839,89298.0,89292.0,0.00011569]
[1765713224730,0.05001839,89296.0,89292.0,0.00011569]
[1765713224936,0.02799708,89295.0,89292.0,0.00011569]
[1765713232427,0.02799426,89304.0,89294.0,0.00439]
[1765713232638,0.02799144,89313.0,89295.0,0.00439]
[1765713233094,0.05001839,89312.0,89295.0,0.00600287]
[1765713233308,0.00024263,89314.0,89295.0,0.00600287]
[1765713233309,0.05001839,89310.0,89295.0,0.00600287]
[1765713233515,0.05001839,89308.0,89296.0,0.00439]
[1765713233668,0.05001839,89306.0,89296.0,0.00439]
[1765713234301,0.02823376,89314.0,89296.0,0.00439]
[1765713234302,0.05001839,89313.0,89296.0,0.00439]
[1765713234502,0.05001839,89311.0,89296.0,0.00439]
[1765713234711,0.05001839,89309.0,89296.0,0.00439]
[1765713234911,0.05001839,89307.0,89296.0,0.00439]
[1765713235319,0.05001839,89307.0,89296.0,0.00600287]
[1765713235921,0.02799332,89307.0,89296.0,0.00600287]
[1765713236201,0.02799332,89307.0,89306.0,0.00439]
[1765713236550,0.05001839,89313.0,89306.0,0.00439]
[1765713236864,0.05001839,89311.0,89306.0,0.00439]
[1765713237051,0.05001839,89309.0,89306.0,0.00439]
[1765713237260,0.05001839,89307.0,89306.0,0.00439]
[1765713237592,0.02823376,89314.0,89306.0,0.00439]
[1765713237796,0.05001839,89313.0,89306.0,0.00439]
[1765713237994,0.05001839,89311.0,89306.0,0.00439]
[1765713238198,0.05001839,89309.0,89297.0,0.00439]
[1765713238411,0.05001839,89307.0,89297.0,0.00439]
[1765713238794,0.05001839,89313.0,89297.0,0.00600287]
[1765713239003,0.05001839,89311.0,89306.0,0.00439]
[1765713239177,0.05001839,89309.0,89306.0,0.00439]
[1765713239324,0.05001839,89307.0,89306.0,0.00439]
[1765713239597,0.05001839,89313.0,89306.0,0.00439]
[1765713239843,0.05001839,89311.0,89306.0,0.00439]
[1765713240091,0.00024263,89314.0,89306.0,0.00439]
[1765713240092,0.05001839,89309.0,89306.0,0.00439]
[1765713240295,0.05001839,89309.0,89297.0,0.00161287]
[1765713240470,0.05001839,89307.0,89297.0,0.00161287]
[1765713240676,0.05001839,89313.0,89298.0,0.00439]
[1765713241008,0.05001839,89311.0,89298.0,0.00600287]
[1765713241158,0.00024263,89314.0,89298.0,0.00600287]
[1765713241500,0.00024263,89314.0,89311.0,0.00439]
[1765713242077,0.05001839,89311.0,89298.0,0.00161287]
[1765713242256,0.05001839,89309.0,89298.0,0.00161287]
[1765713242464,0.05001839,89307.0,89298.0,0.00161287]
[1765713242682,0.05001839,89305.0,89298.0,0.00161287]
[1765713242881,0.02799426,89304.0,89298.0,0.00161287]
[1765713243057,0.05001839,89313.0,89304.0,0.00439]
[1765713243259,0.05001839,89311.0,89304.0,0.00439]
[1765713243461,0.02799238,89310.0,89304.0,0.00439]
[1765713243668,0.05001839,89309.0,89298.0,0.00161287]
[1765713243886,0.05001839,89307.0,89298.0,0.00161287]
[1765713244089,0.05001839,89305.0,89298.0,0.00161287]
[1765713244272,0.02799426,89304.0,89298.0,0.00161287]
[1765713244689,0.05001839,89313.0,89303.0,0.00439]
[1765713244887,0.05001839,89311.0,89304.0,0.00439]
[1765713245109,0.05001839,89309.0,89304.0,0.00439]
[1765713245282,0.05001839,89307.0,89304.0,0.00439]
[1765713245656,0.05001839,89307.0,89306.0,0.00439]
[1765713245856,0.05001839,89313.0,89306.0,0.00439]
[1765713246055,0.05001839,89311.0,89298.0,0.00161287]
[1765713246286,0.05001839,89311.0,89306.0,0.00439]
[1765713246495,0.05001839,89311.0,89299.0,0.00439]
[1765713246701,0.02799238,89310.0,89299.0,0.00439]
[1765713247731,0.02799238,89310.0,89292.0,0.00011569]
[1765713247732,0.05001839,89299.0,89292.0,0.00011569]
[1765713247932,0.05001839,89297.0,89292.0,0.00011569]
[1765713248983,0.05001839,89304.0,89296.0,0.00439]
[1765713249251,0.05001839,89302.0,89296.0,0.00439]
[1765713249414,0.05001839,89300.0,89296.0,0.00439]
[1765713249914,0.08485839,89309.0,89296.0,0.00439]
[1765713250260,0.05001839,89307.0,89296.0,0.00439]
[1765713250481,0.05001839,89305.0,89296.0,0.00439]
[1765713250674,0.05001839,89303.0,89296.0,0.00439]
[1765713250879,0.05001839,89301.0,89296.0,0.00439]
[1765713251225,0.05001839,89309.0,89300.0,0.00439]
[1765713251443,0.05001839,89307.0,89300.0,0.00439]
[1765713251807,0.05001839,89305.0,89300.0,0.00439]
[1765713252028,0.05001839,89303.0,89300.0,0.00439]
[1765713252228,0.05001839,89301.0,89300.0,0.00439]
[1765713252647,0.05001839,89301.0,89292.0,0.00172856]
[1765713252856,0.02799238,89310.0,89292.0,0.00172856]
[1765713252857,0.04634,89293.0,89292.0,0.00011569]
[1765713253071,0.13119839,89293.0,89292.0,0.00011569]
[1765713253300,0.20450839,89293.0,89292.0,0.00011569]
[1765713256355,0.05001839,89293.0,89292.0,0.00450569]
[1765713256953,0.02799489,89302.0,89292.0,0.00450569]
[1765713257620,0.02799269,89309.0,89292.0,0.00450569]
[1765713258049,0.02799301,89308.0,89293.0,0.00439]
[1765713258251,0.02799301,89308.0,89293.0,0.00161287]
[1765713258452,0.03484,89307.0,89293.0,0.00161287]
[1765713258653,0.05001839,89305.0,89293.0,0.00161287]
[1765713258969,0.02799426,89304.0,89293.0,0.00161287]
[1765713259370,0.05001839,89303.0,89292.0,0.00011569]
[1765713259569,0.05001839,89301.0,89292.0,0.00172856]
[1765713259781,0.05001839,89299.0,89292.0,0.00172856]
[1765713260310,0.05001839,89299.0,89298.0,0.00439]
[1765713260511,0.05001839,89306.0,89298.0,0.00439]
[1765713260710,0.05001839,89304.0,89298.0,0.00439]
[1765713260859,0.05001839,89302.0,89298.0,0.00439]
[1765713261271,0.05001839,89302.0,89301.0,0.00439]
[1765713261512,0.02357651,89303.0,89301.0,0.00439]
[1765713261706,0.05001839,89310.0,89302.0,0.00439]
[1765713262080,0.05001839,89308.0,89302.0,0.00439]
[1765713262285,0.05001839,89306.0,89302.0,0.00439]
[1765713262698,0.05001839,89313.0,89302.0,0.00439]
[1765713262826,0.05001839,89311.0,89302.0,0.00439]
[1765713263028,0.05001839,89309.0,89302.0,0.00439]
[1765713263247,0.05001839,89307.0,89302.0,0.00439]
[1765713264165,0.02799332,89307.0,89302.0,0.00439]
[1765713264577,0.05001839,89306.0,89292.0,0.00172856]
[1765713264800,0.02799395,89305.0,89292.0,0.00172856]
[1765713265934,0.12016839,89304.0,89292.0,0.00011569]
[1765713266137,0.13100839,89293.0,89292.0,0.00011569]
[1765713266340,0.08527839,89293.0,89292.0,0.00011569]
[1765713266541,0.05001839,89293.0,89292.0,0.00011569]
[1765713267845,0.16589839,89293.0,89292.0,0.00011569]
[1765713268059,0.1938961,89293.0,89292.0,0.00011569]
[1765713274952,0.0780161,89293.0,89292.0,0.00011569]
[1765713275180,0.07015,89310.0,89292.0,0.00450569]
[1765713275394,0.02799301,89308.0,89292.0,0.00450569]
[1765713275825,0.02799301,89308.0,89293.0,0.00439]
[1765713275942,0.02799301,89308.0,89307.0,0.00439]
[1765713276142,0.02799301,89308.0,89293.0,0.00600287]